[Event "24th Hoogeschool Zeeland 2022"]
[Site "Vlissingen"]
[Date "2022.08.13"]
[Round "9.18"]
[White "Gijsen, William"]
[Black "Lammens, Tim"]
[Result "1/2-1/2"]
[ECO "B12"]
[WhiteElo "2079"]
[BlackElo "2255"]
[Annotator "TA"]
[PlyCount "43"]
[EventDate "2022.08.05"]
[EventType "swiss"]
[EventCountry "NED"]
[SourceTitle "playchess.com"]
[Source "ChessBase"]
[SourceQuality "1"]
[TimeControl "40/5400+30:1800+30"]

{[%evp 9,43,13,26,3,10,-9,7,-15,-5,-31,-23,-29,-26,-38,-54,-92,-26,-78,-63,-56,-62,-58,-59,-56,-50,-50,-4,-5,-5,0,6,10,21,0,0,3]} 1. e4 {[%emt 0:00:02]} c6 {[%emt 0:00:06]} 2. d4 {[%emt 0:00:05]} d5 {[%emt 0:00:03]} 3. e5 {[%emt 0:00:04]} Bf5 {[%emt 0:00:13]} 4. Nf3 {[%emt 0:00:20]} e6 {[%emt 0:00:06]} 5. Be2 {[%emt 0:00:04]} Ne7 {[%emt 0:00:19][%cal Oc6c5,Bg8e7,Be7c6,Bc6d4,Bd4f3][%mdl 32]} 6. Nc3 {[%emt 0:01:13] B12: Caro-Kann: Advance Variation.} Nd7 {[%emt 0:08:38]} 7. Be3 {[%emt 0:00:25]} c5 {[%emt 0:06:41]} 8. O-O {[%emt 0:03:27]} Bg4 {[%emt 0:13:08] [#]} 9. Nd2 $146 {[%emt 0:15:31]} ({Predecessor:} 9. dxc5 Nf5 10. b4 a5 11. a3 Bxf3 12. Bxf3 Nxe5 13. Qe2 Be7 14. Bxd5 exd5 15. Rad1 O-O 16. Nxd5 {½-½ (31) Hirscheider,H-Yeremeyeev,A GER email 2009}) 9... cxd4 {[%emt 0:09:56]} 10. Bxd4 {[%emt 0:00:30]} Nc6 {[%emt 0:03:02]} 11. Bxg4 {[%emt 0:01:18] [#] Nb3 is the strong threat.} Nxd4 {[%emt 0:00:04]} 12. Re1 {[%emt 0:01:17][%cal Od2c4]} Bc5 {[%emt 0:11:25]} (12... Nc6 $17 13. f4 h5) 13. Nf3 {[%emt 0:04:38]} (13. Na4 $11) 13... Nxf3+ {[%emt 0:02:10]} (13... Nc6 {keeps more tension.} 14. Nxd5 h5 15. Bh3 g5) 14. Qxf3 {[%emt 0:00:15][%cal Oc3d5]} O-O {[%emt 0:00:55]} 15. Rad1 {[%emt 0:15:32][%cal Oc3d5] Prevents Bd4.} Qg5 {[%emt 0:05:32]} 16. h4 {[%emt 0:10:25]} Qxh4 {[%emt 0:03:39][%cal Oc5f2] [#] Threatens to win with ...Bxf2+!} 17. Nxd5 $1 {[%emt 0:02:31]} Rad8 {[%emt 0:02:09]} ({Much less strong is} 17... exd5 18. Bxd7 d4 19. Qd5 $16 (19. g3 Qe7 $16)) (17... h5 $15 {should be considered.} 18. Bh3 g5 19. Nf6+ (19. Ne7+ Bxe7 20. Rxd7 g4 $15) 19... Nxf6 20. Qxf6 Bb6) 18. g3 $11 {[%emt 0:02:05] Active counter play! The position is equal.} Qg5 {[%emt 0:01:29]} 19. Qf4 {[%emt 0:00:12]} Qxf4 {[%emt 0:02:04]} 20. Nxf4 {[%emt 0:00:50]} Nb6 {[%emt 0:01:03]} 21. Nd3 {[%emt 0:00:14]} Be7 {[%emt 0:00:34]} 22. Bf3 {[%emt 0:00:45] Weighted Error Value: White=0.17 (very precise) /Black=0.14 (very precise)} 1/2-1/2

[Event "24th Hoogeschool Zeeland 2022"]
[Site "Vlissingen"]
[Date "2022.08.13"]
[Round "9.19"]
[White "Dougherty, Michael"]
[Black "Weber, Dirk"]
[Result "1-0"]
[ECO "E10"]
[WhiteElo "2073"]
[BlackElo "2208"]
[Annotator "TA"]
[PlyCount "117"]
[EventDate "2022.08.05"]
[EventType "swiss"]
[EventCountry "NED"]
[SourceTitle "playchess.com"]
[Source "ChessBase"]
[SourceQuality "1"]
[TimeControl "40/5400+30:1800+30"]

{[%evp 9,117,20,49,26,34,21,50,25,42,52,60,33,57,26,34,20,30,21,18,13,21,19,46,0,30,-19,0,-89,-70,-76,-81,-168,-165,-170,-157,-162,-141,-169,-195,-177,-163,-168,-142,-164,-131,-132,-120,-187,-177,-271,-271,-265,-266,-332,-340,-331,-305,-329,-222,-240,-235,-234,-186,-169,-118,-128,-53,-82,-85,-113,-68,-70,441,397,489,479,29975,29976,6231,2516,2099,525,507,504,795,722,728,716,717,712,546,429,406,361,731,714,557,473,6306,6079,1110,1082,4913,668,5157,5106,29997,29998,29998,29999]} 1. Nf3 {[%emt 0:00:12]} Nf6 {[%emt 0:00:42]} 2. c4 {[%emt 0:00:21]} c5 {[%emt 0:00:27]} 3. Nc3 {[%emt 0:01:01]} e6 {[%emt 0:00:36]} 4. e3 {[%emt 0:00:36]} Be7 {[%emt 0:01:11]} 5. d4 {[%emt 0:00:43]} a6 {[%emt 0:03:03]} 6. Bd3 {[%emt 0:02:35] E10: Blumenfeld Gambit.} O-O {[%emt 0:05:46]} 7. O-O {[%emt 0:02:02]} d6 {[%emt 0:08:26]} 8. b3 {[%emt 0:01:46] [#] White is slightly better.} Re8 $146 {[%emt 0:02:21]} ({Predecessor:} 8... Nbd7 9. Bb2 b6 10. Qe2 Re8 11. Rfd1 Qc7 12. Rac1 Bb7 13. h3 Rac8 14. Bb1 Qb8 {1-0 (58) Riazantsev,A (2666)-Gubsky,E (2303) Sochi 2017}) 9. Bb2 {[%emt 0:01:31]} Qc7 {[%emt 0:02:47]} 10. Qe2 {[%emt 0:04:16]} Nbd7 {[%emt 0:01:49]} 11. Rad1 {[%emt 0:05:24]} b6 {[%emt 0:03:09]} 12. Ng5 {[%emt 0:05:54]} h6 {[%emt 0:03:43]} 13. f4 {[%emt 0:01:40][%cal Od4d5]} Bb7 {[%emt 0:03:07] Against d5} (13... hxg5 14. fxg5 cxd4 15. exd4 $16) 14. Nf3 {[%emt 0:03:25]} Bf8 {[%emt 0:03:14]} 15. Bb1 {[%emt 0:06:55]} Rad8 {[%emt 0:06:22]} 16. Kh1 {[%emt 0:02:28]} (16. d5 $14) 16... g6 {[%emt 0:01:58]} 17. a4 {[%emt 0:04:06]} (17. dxc5 $142 Qxc5 18. e4) 17... Bg7 {[%emt 0:00:55]} 18. h3 {[%emt 0:07:40]} (18. e4 $11 {keeps the balance.}) 18... cxd4 $1 $17 {[%emt 0:04:34]} 19. Nxd4 {[%emt 0:01:33]} e5 {[%emt 0:02:20][%cal Be6e5,Be5e4][%mdl 32]} 20. Ndb5 {[%emt 0:07:35]} axb5 $19 {[%emt 0:01:36]} 21. Nxb5 {[%emt 0:00:06]} Qb8 {[%emt 0:04:37]} 22. f5 {[%emt 0:02:15]} Nf8 {[%emt 0:03:46]} 23. Ba3 {[%emt 0:01:38]} d5 $1 {[%emt 0:04:53]} 24. cxd5 {[%emt 0:09:21]} e4 {[%emt 0:06:23] White must now prevent ...Nh5.} 25. d6 {[%emt 0:03:34]} Ba6 $1 {[%emt 0:03:52]} 26. fxg6 {[%emt 0:07:33]} fxg6 {[%emt 0:05:55]} 27. Qc4+ {[%emt 0:02:35]} Kh8 $1 {[%emt 0:03:27]} 28. Rxf6 {[%emt 0:04:54]} Bxf6 {[%emt 0:00:11]} 29. Bxe4 {[%emt 0:00:11]} (29. Qf7 $142 Bg7 30. Nc7) 29... Bxb5 {[%emt 0:01:30]} 30. axb5 {[%emt 0:00:12]} Bg7 {[%emt 0:00:44]} 31. Qd3 {[%emt 0:04:35]} Qa7 {[%emt 0:01:26]} 32. Bb4 {[%emt 0:00:18]} Qf7 {[%emt 0:00:43]} 33. Bc6 {[%emt 0:04:43]} Re5 {[%emt 0:01:35]} 34. e4 {[%emt 0:00:42]} Nd7 {[%emt 0:03:35]} 35. Rf1 {[%emt 0:01:37]} Qe6 {[%emt 0:02:50] ...Nc5 is the strong threat.} 36. Bd5 {[%emt 0:00:34] [#]} Rxd5 {[%emt 0:00:07]} 37. exd5 $17 {[%emt 0:00:06]} Qe8 {[%emt 0:02:04]} ({Black should try} 37... Qe5 $1 $17 38. Re1 Qd4) 38. Re1 {[%emt 0:00:17] [#]} Qf7 {[%emt 0:00:52]} 39. Re7 {[%emt 0:01:24]} Qf5 {[%emt 0:00:39]} 40. Qe3 {[%emt 0:00:59][%cal Oe7g7] Hoping for Rxg7!} (40. Qxf5 gxf5 41. g3 Bf6 $17) 40... Rf8 $2 {[%emt 0:02:17][%mdl 8192]} (40... Qxd5 $2 {[#]} 41. Rxg7 $1 {[%mdl 512]} Kxg7 42. Qe7+ Qf7 43. Bc3+ (43. Qxd8 Qf1+ 44. Kh2 Qf4+ 45. Kg1 Qd4+ 46. Kf1 Qd3+ 47. Kf2 Qd4+ 48. Ke2 Qe4+ 49. Kd1 Qb1+ 50. Kd2 Qb2+ 51. Ke1 Qe5+ 52. Kd1 Qa1+ 53. Kc2 Qa2+ 54. Kd3 Qb1+ 55. Kd2 Qb2+ 56. Ke1 Qe5+ 57. Kd1 Qa1+ 58. Ke2 Qe5+ 59. Kd3 Qxb5+ 60. Kc2 Ne5 $16) 43... Kg8 44. Qxd8+ Qf8 45. Qh4 (45. Qxd7 Qf1+ 46. Kh2 Qf4+ 47. g3 Qf2+ 48. Kh1 Qf1+ 49. Kh2 Qf2+ 50. Kh1 Qf1+ 51. Kh2 Qf2+ $11) 45... Qxd6 46. Qxh6 Qd1+ 47. Kh2 Qd6+ 48. g3 $18) (40... Rc8 $1 $15 {stays ahead.}) 41. Bc3 $18 {[%emt 0:01:28] White threatens Qxh6+ and mate.} Nf6 {[%emt 0:06:31]} 42. d7 $1 {[%emt 0:00:46][%cal Oe7g7] Intending Rxg7! and mate.} Kg8 {[%emt 0:07:58] [#]} (42... g5 $18 43. Rf7 Rxf7 44. d8=Q+ Kh7) 43. Rxg7+ $1 {[%emt 0:03:44][%mdl 576] Clearance} Kxg7 {[%emt 0:00:21]} 44. Qe7+ {[%emt 0:00:07]} (44. d8=Q $142 Rxd8 45. Qe7+ Kg8 46. Bxf6 Qf1+ 47. Kh2 Qf4+ 48. Kg1 Qc1+ 49. Kf2 Qf4+ 50. Ke2 Qxf6 51. Qxf6 Re8+ 52. Kd3) 44... Kg8 {[%emt 0:01:12] [#]} 45. Qxf8+ $3 {[%emt 0:04:17][%mdl 512]} Kxf8 {[%emt 0:00:17]} 46. d8=Q+ {[%emt 0:00:09][%mdl 4096] Endgame KQB-KQN} Ne8 {[%emt 0:00:11]} (46... Kf7 $142 47. Qxb6 Nxd5 48. Qb7+ Ne7) 47. Qxb6 {[%emt 0:06:01]} Qf1+ {[%emt 0:03:46]} 48. Qg1 {[%emt 0:00:15]} Qxb5 {[%emt 0:00:09]} 49. Qf2+ {[%emt 0:00:51]} Ke7 {[%emt 0:02:19]} 50. Qe3+ {[%emt 0:01:19]} Kd8 {[%emt 0:00:41]} 51. Qe5 {[%emt 0:02:53]} h5 $2 {[%emt 0:02:11]} (51... Qb6 52. Qf4 g5) 52. Kh2 {[%emt 0:01:03]} Qb6 {[%emt 0:01:24]} 53. Bd4 {[%emt 0:01:16]} Qxb3 {[%emt 0:01:28]} (53... Qb4 $142 54. Qe4 Qb7) 54. Qe6 {[%emt 0:01:43] Bb6+ would kill now.} Qb8+ {[%emt 0:02:10]} 55. Be5 {[%emt 0:01:13]} Qb7 {[%emt 0:00:27]} 56. h4 {[%emt 0:01:07]} (56. d6 $142 g5 57. Qf5) 56... Qb1 {[%emt 0:01:41]} 57. d6 {[%emt 0:01:46]} Qb5 {[%emt 0:01:25]} 58. Bf6+ {[%emt 0:00:19]} Nxf6 {[%emt 0:00:18]} 59. Qe7+ {[%emt 0:00:07] What a bad dream for Black.  Weighted Error Value: White=0.43/Black=0.50} 1-0

[Event "24th Hoogeschool Zeeland 2022"]
[Site "Vlissingen"]
[Date "2022.08.13"]
[Round "9.20"]
[White "Nieuwelink, Kees"]
[Black "Shakhverdian, William"]
[Result "1/2-1/2"]
[ECO "C50"]
[WhiteElo "2200"]
[BlackElo "2040"]
[Annotator "TA"]
[PlyCount "41"]
[EventDate "2022.08.05"]
[EventType "swiss"]
[EventCountry "NED"]
[SourceTitle "playchess.com"]
[Source "ChessBase"]
[SourceQuality "1"]
[TimeControl "40/5400+30:1800+30"]

{[%evp 13,41,-56,0,-16,0,0,0,0,0,-13,-15,-46,-38,-36,-47,-52,-29,-30,-13,-12,-14,-10,-9,-21,-20,-20,0,-8,-7,-25]} 1. e4 {[%emt 0:00:02]} e5 {[%emt 0:00:06]} 2. Nf3 {[%emt 0:00:18]} Nc6 {[%emt 0:00:08][%cal Bb8c6,Bc6d4,Bd4c2][%mdl 32]} 3. Bc4 {[%emt 0:00:39]} Bc5 {[%emt 0:00:21]} 4. O-O {[%emt 0:00:20]} Nf6 {[%emt 0:00:08]} 5. d4 {[%emt 0:00:17]} Bxd4 {[%emt 0:00:21]} 6. Nxd4 {[%emt 0:00:08]} Nxd4 {[%emt 0:00:06]} 7. Bg5 {[%emt 0:00:08]} d6 $1 {[%emt 0:02:26] 7...d6 scores better than 7...h6.} (7... h6 $5 {[%cal Rh6g5]} 8. Be3 Nc6 $15) 8. f4 {[%emt 0:00:15] C50: Hungarian Defence and Giuoco Pianissimo.} Bg4 {[%emt 0:00:42]} 9. Bxf6 {[%emt 0:03:44]} Bxd1 {[%emt 0:01:28]} 10. Bxd8 {[%emt 0:00:04]} Rxd8 {[%emt 0:00:14]} 11. Rxd1 {[%emt 0:00:29] [#] And now Na3 would win.} Nxc2 {[%emt 0:00:08]} 12. Nc3 {[%emt 0:02:16]} Nxa1 {[%emt 0:00:05]} 13. Rxa1 {[%emt 0:00:03]} exf4 {[%emt 0:00:09]} 14. Nd5 {[%emt 0:01:06]} c6 {[%emt 0:00:34]} (14... Kd7 $5 {[%cal Rg7g5]}) 15. Nxf4 {[%emt 0:00:05]} O-O {[%emt 0:00:06] [#]} 16. Kf2 $146 {[%emt 0:10:56] The position is equal.} ({Predecessor:} 16. Rc1 Rfe8 17. Bd3 Re5 18. b4 a5 19. b5 Rc5 20. Rb1 Rc3 21. Rd1 Kf8 22. Kf2 {0-1 (30) Genocchio,D (2361)-Barp,A (2374) Civitanova Marche 2021}) 16... Rfe8 {[%emt 0:03:20]} 17. Kf3 {[%emt 0:01:25]} Re5 {[%emt 0:01:25]} 18. Rd1 {[%emt 0:02:18]} Kf8 {[%emt 0:13:05]} 19. g4 {[%emt 0:00:42]} a5 {[%emt 0:04:05]} 20. a4 {[%emt 0:05:43]} Rde8 {[%emt 0:02:17] [#] White must now prevent ...g5.} 21. Rd4 {[%emt 0:00:09] Weighted Error Value: White=0.06 (flawless) /Black=0.11 (very precise)} 1/2-1/2

[Event "24th Hoogeschool Zeeland 2022"]
[Site "Vlissingen"]
[Date "2022.08.13"]
[Round "9.21"]
[White "Baarslag, Ed"]
[Black "Verwoert, Jef"]
[Result "1-0"]
[ECO "A46"]
[WhiteElo "2161"]
[BlackElo "1998"]
[Annotator "TA"]
[PlyCount "74"]
[EventDate "2022.08.05"]
[EventType "swiss"]
[EventCountry "NED"]
[SourceTitle "playchess.com"]
[Source "ChessBase"]
[SourceQuality "1"]
[TimeControl "40/5400+30:1800+30"]

{[%evp 9,74,-12,0,-13,0,-27,-8,-3,5,-4,38,28,26,20,56,25,29,30,38,30,52,25,28,27,39,25,28,24,27,0,10,3,25,21,22,22,39,41,55,29,35,25,35,18,31,23,41,2,25,14,28,18,32,16,24,20,22,13,23,24,27,20,27,0,0,0,74]} 1. d4 {[%emt 0:00:42]} Nf6 {[%emt 0:00:13]} 2. Nf3 {[%emt 0:01:11]} c5 {[%emt 0:01:33]} 3. g3 {[%emt 0:01:44]} cxd4 {[%emt 0:01:55]} 4. Nxd4 {[%emt 0:01:24]} Nc6 {[%emt 0:00:51]} 5. Nxc6 {[%emt 0:01:09]} dxc6 {[%emt 0:03:41]} 6. Qxd8+ {[%emt 0:02:43] A46: 1 d4 Nf6 2 Nf3 e6: Torre, London and Colle Systems.} Kxd8 {[%emt 0:00:07] [#]} 7. Bg2 $146 {[%emt 0:00:38]} ({Predecessor:} 7. f3 e5 8. e4 Bc5 9. Nd2 Ke7 10. Nc4 Nd7 11. Bh3 f6 12. Be3 Bxe3 13. Nxe3 {½-½ (53) Filippas Ntekouan,S (2145)-Nabaty,T (2421) Sibenik 2007}) 7... Bf5 {[%emt 0:03:08]} 8. c3 {[%emt 0:01:25]} e6 {[%emt 0:05:39]} 9. Nd2 {[%emt 0:03:22]} Bd6 {[%emt 0:12:15]} 10. Nc4 {[%emt 0:07:27]} Bc7 {[%emt 0:01:36]} 11. a4 {[%emt 0:17:08]} (11. Be3 {feels hotter.} e5 12. Bc5 Ne4 13. Ba3) 11... Be4 {[%emt 0:07:09]} 12. Bxe4 {[%emt 0:03:55]} (12. f3 $5 {[%cal Rf3e4]} Bc2 13. Be3 $14) 12... Nxe4 {[%emt 0:04:12]} 13. Be3 {[%emt 0:00:39]} b6 {[%emt 0:22:55]} 14. f3 {[%emt 0:07:06]} Nf6 {[%emt 0:05:12][%cal Be4f6,Bf6d7,Bd7e5][%mdl 32]} 15. Bf2 {[%emt 0:03:50]} Ke7 {[%emt 0:27:34]} 16. Kd2 {[%emt 0:06:38]} Rhc8 {[%emt 0:00:00]} 17. Rhc1 {[%emt 0:07:05]} Nd7 {[%emt 0:00:00]} 18. b4 {[%emt 0:05:24]} Ne5 {[%emt 0:00:00]} 19. Ne3 {[%emt 0:03:14]} f6 {[%emt 0:00:00]} 20. f4 {[%emt 0:01:08]} Nf7 {[%emt 0:00:00]} 21. Nc4 {[%emt 0:02:49]} Rd8+ {[%emt 0:00:00]} 22. Kc2 {[%emt 0:00:49]} Nd6 {[%emt 0:00:00]} (22... e5 {with more complications.} 23. f5 Ng5 24. Be3 Ne4) 23. Nxd6 {[%emt 0:00:35]} Bxd6 {[%emt 0:00:00]} 24. Rd1 {[%emt 0:03:48]} Bc7 {[%emt 0:00:00]} 25. Rxd8 {[%emt 0:00:16]} Rxd8 $14 {[%emt 0:00:00][%mdl 4096] Endgame KRB-KRB} 26. e4 {[%emt 0:05:30]} g6 {[%emt 0:00:00]} 27. Be3 {[%emt 0:00:57]} Rd7 {[%emt 0:03:13]} 28. h3 {[%emt 0:01:43]} Rd8 {[%emt 0:00:26]} 29. Re1 {[%emt 0:01:23]} Kf7 {[%emt 0:00:07]} 30. Rf1 {[%emt 0:01:57]} Re8 {[%emt 0:00:51]} 31. Rd1 {[%emt 0:03:16][%cal Oa4a5]} Rd8 {[%emt 0:00:15]} 32. Rxd8 {[%emt 0:02:59]} Bxd8 $11 {[%emt 0:00:04] KB-KB} 33. b5 {[%emt 0:00:41]} Ke7 {[%emt 0:01:28]} 34. c4 {[%emt 0:00:53]} Kd7 {[%emt 0:03:06]} 35. Kd3 {[%emt 0:00:50]} Bc7 {[%emt 0:00:00]} 36. Bd4 {[%emt 0:00:36]} e5 {[%emt 0:00:07]} 37. Be3 {[%emt 0:00:41]} c5 {[%emt 0:00:00] Weighted Error Value: White=0.10 (very precise) /Black=0.11 (very precise)} (37... cxb5 $11 {remains equal.} 38. cxb5 exf4 39. gxf4 f5) 1-0

[Event "24th Hoogeschool Zeeland 2022"]
[Site "Vlissingen"]
[Date "2022.08.13"]
[Round "9.22"]
[White "Tabak, Stefan"]
[Black "Lichtmannecker, Daniel"]
[Result "0-1"]
[ECO "B19"]
[WhiteElo "2181"]
[BlackElo "2013"]
[Annotator "TA"]
[PlyCount "64"]
[EventDate "2022.08.05"]
[EventType "swiss"]
[EventCountry "NED"]
[SourceTitle "playchess.com"]
[Source "ChessBase"]
[SourceQuality "1"]
[TimeControl "40/5400+30:1800+30"]

{[%evp 32,64,16,31,20,16,18,15,29,-5,36,0,0,0,0,0,0,-13,-19,-116,-97,-95,-92,-82,-66,-95,0,-60,-60,-77,-71,-817,-776,-1641,-1296]} 1. e4 {[%emt 0:00:02]} c6 {[%emt 0:27:31]} 2. d4 {[%emt 0:00:21]} d5 {[%emt 0:00:30]} 3. Nc3 {[%emt 0:00:08][%cal Bb1c3,Bc3e4,Be4g3][%mdl 32]} dxe4 {[%emt 0:00:06]} 4. Nxe4 {[%emt 0:00:04]} Bf5 {[%emt 0:00:07]} 5. Ng3 {[%emt 0:00:07]} Bg6 {[%emt 0:00:01]} 6. Nf3 {[%emt 0:00:09]} Nd7 {[%emt 0:00:02]} 7. h4 {[%emt 0:02:48]} h6 {[%emt 0:00:24]} 8. h5 {[%emt 0:00:13]} Bh7 {[%emt 0:00:05]} 9. Bd3 {[%emt 0:00:19]} Bxd3 {[%emt 0:00:05]} 10. Qxd3 {[%emt 0:00:05]} Ngf6 {[%emt 0:00:09]} 11. Bf4 {[%emt 0:00:27]} Qa5+ {[%emt 0:00:55]} 12. Bd2 {[%emt 0:01:04]} Qc7 {[%emt 0:00:05]} 13. O-O-O {[%emt 0:03:06]} e6 {[%emt 0:00:06]} 14. Rhe1 {[%emt 0:02:10]} O-O-O {[%emt 0:01:56]} 15. Qe2 {[%emt 0:04:32]} Bd6 {[%emt 0:01:17]} 16. Ne5 {[%emt 0:07:08]} Rhf8 {[%emt 0:02:35]} 17. f4 {[%emt 0:06:44]} c5 {[%emt 0:04:53] B19: Classical Caro-Kann: 4...Bf5 main line.} 18. dxc5 {[%emt 0:04:32]} Nxc5 {[%emt 0:02:52]} 19. Kb1 {[%emt 0:06:49]} Kb8 {[%emt 0:17:43] The position is equal.} 20. Qf3 {[%emt 0:05:39] [#]} Rc8 $146 {[%emt 0:07:10]} ({Predecessor:} 20... Rfe8 21. Nc4 Bf8 22. Bc3 Ncd7 23. Ne5 Nc5 24. Nc4 Ncd7 25. Ne5 Nxe5 26. Bxe5 Bd6 27. Bxd6 Rxd6 28. Rxd6 Qxd6 {0-1 (48) Mazurek,J (1607)-Rozycki,B (2134) Warsaw 2018}) 21. Nc4 {[%emt 0:12:21] Ba5 is the strong threat.} Na4 {[%emt 0:03:42]} 22. b3 {[%emt 0:03:26]} Nd5 {[%emt 0:02:56][%cal Rd6f4]} 23. Ne4 {[%emt 0:01:51]} Be7 {[%emt 0:02:53][%cal Ob7b5] Strongly threatening ...b5!} 24. f5 {[%emt 0:12:16]} b5 {[%emt 0:02:33][%cal Bb7b5,Bb5c4][%mdl 32]} 25. Bc1 {[%emt 0:05:05] [#]} Rfd8 $1 {[%emt 0:05:21]} 26. fxe6 {[%emt 0:08:37] [#]} fxe6 {[%emt 0:00:13]} 27. bxa4 {[%emt 0:04:29] aiming for Na3.} bxc4 {[%emt 0:00:47]} 28. Ka1 $1 {[%emt 0:08:08][%cal Od1d5] [#] And now Rxd5! would win.} Qa5 {[%emt 0:03:44]} (28... Ka8 $1 $17 {White must now prevent ...Rb8.} 29. Nc3 Bf6) 29. Bf4+ {[%emt 0:00:42]} (29. Ba3 $1 $11 Bxa3 30. Qxa3) 29... Ka8 $15 {[%emt 0:00:36]} 30. Be5 {[%emt 0:01:05] [#]} Rf8 $1 {[%emt 0:04:10]} ({Much weaker is} 30... Qxa4 $6 31. Nc3 Qd7 32. Re4 $11) 31. Qh3 {[%emt 0:00:36][%mdl 8192]} (31. Qe2 $17) 31... Nb4 $19 {[%emt 0:02:22]} 32. Re2 {[%emt 0:00:47]} Qxe5+ {[%emt 0:00:18] Weighted Error Value: White=0.76/Black=0.12 (very precise)} 0-1

[Event "24th Hoogeschool Zeeland 2022"]
[Site "Vlissingen"]
[Date "2022.08.13"]
[Round "9.23"]
[White "Bazilius, Augustinas"]
[Black "Tiggelman, Rene"]
[Result "1-0"]
[ECO "A90"]
[WhiteElo "2045"]
[BlackElo "2165"]
[Annotator "TA"]
[PlyCount "61"]
[EventDate "2022.08.05"]
[EventType "swiss"]
[EventCountry "NED"]
[SourceTitle "playchess.com"]
[Source "ChessBase"]
[SourceQuality "1"]
[TimeControl "40/5400+30:1800+30"]

{[%evp 18,61,7,41,39,0,0,0,0,0,2,0,0,0,41,51,41,44,105,89,166,152,218,155,140,156,204,65,76,0,0,0,199,189,178,174,168,176,214,214,273,362,29971,29972,5973,4810]} 1. d4 {[%emt 0:00:03]} e6 {[%emt 0:00:09]} 2. c4 {[%emt 0:00:06]} f5 {[%emt 0:00:07]} 3. Nf3 {[%emt 0:00:10]} Nf6 {[%emt 0:00:09]} 4. g3 {[%emt 0:00:24]} d5 {[%emt 0:00:16]} 5. Bg2 {[%emt 0:00:13]} c6 {[%emt 0:00:08]} 6. O-O {[%emt 0:00:16]} Bd6 {[%emt 0:00:11]} 7. Nc3 {[%emt 0:01:26]} O-O {[%emt 0:00:45]} 8. Rb1 {[%emt 0:00:16]} Ne4 {[%emt 0:02:34]} 9. Qc2 {[%emt 0:00:16]} Nd7 {[%emt 0:06:56]} 10. b4 {[%emt 0:00:40]} b5 {[%emt 0:00:15] 10...b5 was played by the boomers. A90: Dutch Defence: Miscellaneous and Modern Stonewall (with ...Bd6).} 11. c5 {[%emt 0:23:25]} Bc7 {[%emt 0:04:14] [#]} 12. a4 $146 {[%emt 1:09:15]} ({Predecessor:} 12. Nd1 a5 13. Nb2 axb4 14. Nd3 Bb7 15. Rxb4 Qe7 16. Bf4 Ba5 17. Rb3 g5 18. Bc1 {½-½ (122) Timko,V (2398)-Chaika,I (2473) ICCF email 2014}) 12... bxa4 {[%emt 0:13:09] The position is equal.} 13. Nxa4 {[%emt 0:00:00]} Ba6 {[%emt 0:02:33]} 14. Nb2 {[%emt 0:00:00]} Bb5 {[%emt 0:01:20]} 15. Nd3 {[%emt 0:00:00]} g5 {[%emt 0:05:52]} 16. Nfe5 {[%emt 0:00:00]} Nxe5 {[%emt 0:02:33]} 17. dxe5 {[%emt 0:00:00]} a5 {[%emt 0:30:17]} (17... d4 $14) 18. f3 $16 {[%emt 0:00:00]} axb4 {[%emt 0:00:01]} 19. fxe4 $18 {[%emt 0:00:00]} fxe4 {[%emt 0:00:30]} (19... b3 $16 {was worth a try.} 20. Qxb3 fxe4) 20. Rxf8+ {[%emt 0:00:00]} Qxf8 {[%emt 0:02:24]} 21. Nxb4 {[%emt 0:00:00]} Bxe5 {[%emt 0:01:04]} (21... Qg7 $16 {might work better.} 22. Bb2 Bxe5) 22. Be3 {[%emt 0:00:00]} (22. Bxg5 $18 {Strongly threatening Bh3.} Bd4+ 23. e3 Bxc5 24. Qc3) 22... Qg7 {[%emt 0:01:36]} 23. Bxe4 {[%emt 0:00:00]} dxe4 $11 {[%emt 0:01:10]} 24. Qxe4 {[%emt 0:00:00]} Rc8 {[%emt 0:09:03]} (24... Qg6 $11 25. Qxg6+ hxg6) 25. Nd3 $18 {[%emt 0:00:00]} Bxd3 {[%emt 0:00:58]} 26. exd3 {[%emt 0:00:00] [#] Black must now prevent d4.} Rd8 {[%emt 0:12:46] Against d4} 27. Qxc6 {[%emt 0:00:00]} Qf6 {[%emt 0:01:45]} 28. Qe4 {[%emt 0:00:00] And now Rf1 would win.} Bd4 {[%emt 0:01:04]} 29. Bxd4 {[%emt 0:00:00]} Qxd4+ {[%emt 0:00:27] [#]} (29... Rxd4 $18 30. Rb8+ Kg7 31. Rb7+ Kf8 32. Qxh7 Rd8) 30. Qxd4 {[%emt 0:00:00]} Rxd4 {[%emt 0:00:10]} 31. c6 {[%emt 0:00:00] Weighted Error Value: White=0.21 (precise) /Black=0.65} 1-0